Department Family,Entity,Date,Expense Type,Expense Area,Supplier,Transaction Number,AP Amount
Department of Health,St. Helens&Knowsley Hospitals NHS Trust,31/10/2021,Mobile Phones,A + E NURSING WHISTON,VODAFONE LTD,39916719,4.70
Department of Health,St. Helens&Knowsley Hospitals NHS Trust,31/10/2021,Mobile Phones,A + E NURSING WHISTON,VODAFONE LTD,39916719,23.50
Department of Health,St. Helens&Knowsley Hospitals NHS Trust,31/10/2021,Mobile Phones,ACUTE KIDNEY INJURY SERVICE,VODAFONE LTD,39916719,6.14
Department of Health,St. Helens&Knowsley Hospitals NHS Trust,31/10/2021,Mobile Phones,ACUTE KIDNEY INJURY SERVICE,VODAFONE LTD,39916719,30.72
Department of Health,St. Helens&Knowsley Hospitals NHS Trust,31/10/2021,Mobile Phones,ACUTE MEDICAL UNIT,VODAFONE LTD,39916719,-1.47
Department of Health,St. Helens&Knowsley Hospitals NHS Trust,31/10/2021,Mobile Phones,ACUTE MEDICAL UNIT,VODAFONE LTD,39916719,-7.34
Department of Health,St. Helens&Knowsley Hospitals NHS Trust,31/10/2021,Mobile Phones,AMU NURSE SPECIALISTS,VODAFONE LTD,39916719,36.02
Department of Health,St. Helens&Knowsley Hospitals NHS Trust,31/10/2021,Mobile Phones,AMU NURSE SPECIALISTS,VODAFONE LTD,39916719,180.12
Department of Health,St. Helens&Knowsley Hospitals NHS Trust,31/10/2021,Mobile Phones,ANTI-COAGULATION NURSING TEAM,VODAFONE LTD,39916719,6.00
Department of Health,St. Helens&Knowsley Hospitals NHS Trust,31/10/2021,Mobile Phones,ANTI-COAGULATION NURSING TEAM,VODAFONE LTD,39916719,30.00
Department of Health,St. Helens&Knowsley Hospitals NHS Trust,31/10/2021,Mobile Phones,B + P MEDICAL PHOTOGRAPHY,VODAFONE LTD,39916719,12.00
Department of Health,St. Helens&Knowsley Hospitals NHS Trust,31/10/2021,Mobile Phones,B + P MEDICAL PHOTOGRAPHY,VODAFONE LTD,39916719,60.00
Department of Health,St. Helens&Knowsley Hospitals NHS Trust,31/10/2021,Mobile Phones,B + P MEDICAL STAFF,VODAFONE LTD,39916719,23.56
Department of Health,St. Helens&Knowsley Hospitals NHS Trust,31/10/2021,Mobile Phones,B + P MEDICAL STAFF,VODAFONE LTD,39916719,117.81
Department of Health,St. Helens&Knowsley Hospitals NHS Trust,31/10/2021,Rent,B + P MEDICAL STAFF,BETSI CADWALADR UNIVERSITY LHB,39741222,"65,842.29"
Department of Health,St. Helens&Knowsley Hospitals NHS Trust,31/10/2021,Med Equip Additions,Balance Sheet,SUPPLY CHAIN COORDINATION LIMITED,40052468,"42,534.44"
Department of Health,St. Helens&Knowsley Hospitals NHS Trust,31/10/2021,Med Equip Additions,Balance Sheet,SUPPLY CHAIN COORDINATION LIMITED,40052468,"8,506.89"
Department of Health,St. Helens&Knowsley Hospitals NHS Trust,31/10/2021,Other recvables - Current,Balance Sheet,VODAFONE LTD,39916719,6.00
Department of Health,St. Helens&Knowsley Hospitals NHS Trust,31/10/2021,Other recvables - Current,Balance Sheet,VODAFONE LTD,39916719,30.00
Department of Health,St. Helens&Knowsley Hospitals NHS Trust,31/10/2021,Stocks Raw Materials,Balance Sheet,ALLIANCE HEALTHCARE DISTRIBUTION LTD,39735532,"9,586.67"
Department of Health,St. Helens&Knowsley Hospitals NHS Trust,31/10/2021,Stocks Raw Materials,Balance Sheet,ALLIANCE HEALTHCARE DISTRIBUTION LTD,39735532,"48,350.75"
Department of Health,St. Helens&Knowsley Hospitals NHS Trust,31/10/2021,Stocks Raw Materials,Balance Sheet,ALLIANCE HEALTHCARE DISTRIBUTION LTD,39735534,"9,509.36"
Department of Health,St. Helens&Knowsley Hospitals NHS Trust,31/10/2021,Stocks Raw Materials,Balance Sheet,ALLIANCE HEALTHCARE DISTRIBUTION LTD,39735534,"50,508.61"
Department of Health,St. Helens&Knowsley Hospitals NHS Trust,31/10/2021,Stocks Raw Materials,Balance Sheet,HEALTHCARE AT HOME LTD,39735536,"99,938.80"
Department of Health,St. Helens&Knowsley Hospitals NHS Trust,31/10/2021,Stocks Raw Materials,Balance Sheet,PHOENIX HEALTHCARE DISTRIBUTION LTD,39735537,"87,977.59"
Department of Health,St. Helens&Knowsley Hospitals NHS Trust,31/10/2021,Stocks Raw Materials,Balance Sheet,ROCHE PRODUCTS LTD,39753866,"6,518.40"
Department of Health,St. Helens&Knowsley Hospitals NHS Trust,31/10/2021,Stocks Raw Materials,Balance Sheet,ROCHE PRODUCTS LTD,39753866,"12,096.00"
Department of Health,St. Helens&Knowsley Hospitals NHS Trust,31/10/2021,Stocks Raw Materials,Balance Sheet,ROCHE PRODUCTS LTD,39753866,"8,904.00"
Department of Health,St. Helens&Knowsley Hospitals NHS Trust,31/10/2021,Stocks Raw Materials,Balance Sheet,HEALTHCARE AT HOME LTD,39895645,"31,421.10"
Department of Health,St. Helens&Knowsley Hospitals NHS Trust,31/10/2021,Stocks Raw Materials,Balance Sheet,AAH PHARMACEUTICALS LTD,39895646,"27,872.46"
Department of Health,St. Helens&Knowsley Hospitals NHS Trust,31/10/2021,Stocks Raw Materials,Balance Sheet,AAH PHARMACEUTICALS LTD,39895647,"30,565.98"
Department of Health,St. Helens&Knowsley Hospitals NHS Trust,31/10/2021,Stocks Raw Materials,Balance Sheet,AAH PHARMACEUTICALS LTD,39910512,"41,287.81"
Department of Health,St. Helens&Knowsley Hospitals NHS Trust,31/10/2021,Stocks Raw Materials,Balance Sheet,NOVARTIS PHARMACEUTICALS UK LTD,39942068,"28,848.96"
Department of Health,St. Helens&Knowsley Hospitals NHS Trust,31/10/2021,Stocks Raw Materials,Balance Sheet,NOVARTIS PHARMACEUTICALS UK LTD,39942068,"7,862.40"
Department of Health,St. Helens&Knowsley Hospitals NHS Trust,31/10/2021,Stocks Raw Materials,Balance Sheet,NOVARTIS PHARMACEUTICALS UK LTD,39942068,12.42
Department of Health,St. Helens&Knowsley Hospitals NHS Trust,31/10/2021,Stocks Raw Materials,Balance Sheet,NOVARTIS PHARMACEUTICALS UK LTD,39942192,"34,191.36"
Department of Health,St. Helens&Knowsley Hospitals NHS Trust,31/10/2021,Stocks Raw Materials,Balance Sheet,NOVARTIS PHARMACEUTICALS UK LTD,39942192,4.46
Department of Health,St. Helens&Knowsley Hospitals NHS Trust,31/10/2021,Stocks Raw Materials,Balance Sheet,NOVARTIS PHARMACEUTICALS UK LTD,39942192,"1,310.40"
Department of Health,St. Helens&Knowsley Hospitals NHS Trust,31/10/2021,Stocks Raw Materials,Balance Sheet,NOVARTIS PHARMACEUTICALS UK LTD,39942192,4.49
Department of Health,St. Helens&Knowsley Hospitals NHS Trust,31/10/2021,Stocks Raw Materials,Balance Sheet,HEALTHCARE AT HOME LTD,39962228,"231,919.37"
Department of Health,St. Helens&Knowsley Hospitals NHS Trust,31/10/2021,Stocks Raw Materials,Balance Sheet,ALLOGA UK LTD,40009602,"37,505.73"
Department of Health,St. Helens&Knowsley Hospitals NHS Trust,31/10/2021,Stocks Raw Materials,Balance Sheet,ALLOGA UK LTD,40009604,"34,991.48"
Department of Health,St. Helens&Knowsley Hospitals NHS Trust,31/10/2021,Stocks Raw Materials,Balance Sheet,HEALTHCARE AT HOME LTD,40009605,"91,580.55"
Department of Health,St. Helens&Knowsley Hospitals NHS Trust,31/10/2021,Stocks Raw Materials,Balance Sheet,PHOENIX HEALTHCARE DISTRIBUTION LTD,40009607,"9,493.85"
Department of Health,St. Helens&Knowsley Hospitals NHS Trust,31/10/2021,Stocks Raw Materials,Balance Sheet,PHOENIX HEALTHCARE DISTRIBUTION LTD,40009607,"47,469.43"
Department of Health,St. Helens&Knowsley Hospitals NHS Trust,31/10/2021,Stocks Raw Materials,Balance Sheet,HEALTHCARE AT HOME LTD,40009608,"91,545.79"
Department of Health,St. Helens&Knowsley Hospitals NHS Trust,31/10/2021,Stocks Raw Materials,Balance Sheet,ALLIANCE HEALTHCARE DISTRIBUTION LTD,40009609,"15,050.98"
Department of Health,St. Helens&Knowsley Hospitals NHS Trust,31/10/2021,Stocks Raw Materials,Balance Sheet,ALLIANCE HEALTHCARE DISTRIBUTION LTD,40009609,"40,932.95"
Department of Health,St. Helens&Knowsley Hospitals NHS Trust,31/10/2021,Stocks Raw Materials,Balance Sheet,ALLIANCE HEALTHCARE DISTRIBUTION LTD,40009610,"17,931.98"
Department of Health,St. Helens&Knowsley Hospitals NHS Trust,31/10/2021,Stocks Raw Materials,Balance Sheet,ALLIANCE HEALTHCARE DISTRIBUTION LTD,40009610,"78,240.40"
Department of Health,St. Helens&Knowsley Hospitals NHS Trust,31/10/2021,Stocks Raw Materials,Balance Sheet,AAH PHARMACEUTICALS LTD,40017646,"64,311.50"
Department of Health,St. Helens&Knowsley Hospitals NHS Trust,31/10/2021,Stocks Raw Materials,Balance Sheet,AAH PHARMACEUTICALS LTD,40017648,"65,526.01"
Department of Health,St. Helens&Knowsley Hospitals NHS Trust,31/10/2021,Mobile Phones,BED MANAGEMENT,VODAFONE LTD,39916719,11.82
Department of Health,St. Helens&Knowsley Hospitals NHS Trust,31/10/2021,Mobile Phones,BED MANAGEMENT,VODAFONE LTD,39916719,59.08
Department of Health,St. Helens&Knowsley Hospitals NHS Trust,31/10/2021,Mobile Phones,BEVAN COURT 1,VODAFONE LTD,39916719,1.95
Department of Health,St. Helens&Knowsley Hospitals NHS Trust,31/10/2021,Mobile Phones,BEVAN COURT 1,VODAFONE LTD,39916719,9.76
Department of Health,St. Helens&Knowsley Hospitals NHS Trust,31/10/2021,Mobile Phones,BEVAN COURT 2,VODAFONE LTD,39916719,35.79
Department of Health,St. Helens&Knowsley Hospitals NHS Trust,31/10/2021,Mobile Phones,BEVAN COURT 2,VODAFONE LTD,39916719,178.96
Department of Health,St. Helens&Knowsley Hospitals NHS Trust,31/10/2021,Miscellaneous Expenditure,BEVAN COURT FM,NEW HOSPITALS (ST HELENS & KNOWSLEY) LTD,39916736,"72,482.97"
Department of Health,St. Helens&Knowsley Hospitals NHS Trust,31/10/2021,Mobile Phones,BREAST SURGERY,VODAFONE LTD,39916719,1.50
Department of Health,St. Helens&Knowsley Hospitals NHS Trust,31/10/2021,Mobile Phones,BREAST SURGERY,VODAFONE LTD,39916719,7.50
Department of Health,St. Helens&Knowsley Hospitals NHS Trust,31/10/2021,Mobile Phones,BUSINESS RELATIONSHIPS,VODAFONE LTD,39916719,6.02
Department of Health,St. Helens&Knowsley Hospitals NHS Trust,31/10/2021,Mobile Phones,BUSINESS RELATIONSHIPS,VODAFONE LTD,39916719,30.12
Department of Health,St. Helens&Knowsley Hospitals NHS Trust,31/10/2021,Mobile Phones,C.O.P.D SERVICE (KPCT),VODAFONE LTD,39916719,1.50
Department of Health,St. Helens&Knowsley Hospitals NHS Trust,31/10/2021,Mobile Phones,C.O.P.D SERVICE (KPCT),VODAFONE LTD,39916719,7.50
Department of Health,St. Helens&Knowsley Hospitals NHS Trust,31/10/2021,Mobile Phones,C.O.P.D SERVICE (STHPCT),VODAFONE LTD,39916719,210.70
Department of Health,St. Helens&Knowsley Hospitals NHS Trust,31/10/2021,Mobile Phones,C.O.P.D SERVICE (STHPCT),VODAFONE LTD,39916719,"1,053.50"
Department of Health,St. Helens&Knowsley Hospitals NHS Trust,31/10/2021,Mobile Phones,C19 VAC PRGME HR PROJECT SUPPORT,VODAFONE LTD,39916719,42.00
Department of Health,St. Helens&Knowsley Hospitals NHS Trust,31/10/2021,Mobile Phones,C19 VAC PRGME HR PROJECT SUPPORT,VODAFONE LTD,39916719,210.00
Department of Health,St. Helens&Knowsley Hospitals NHS Trust,31/10/2021,Mobile Phones,CANCER CORE STAFF AND NON-PAY,VODAFONE LTD,39916719,12.00
Department of Health,St. Helens&Knowsley Hospitals NHS Trust,31/10/2021,Mobile Phones,CANCER CORE STAFF AND NON-PAY,VODAFONE LTD,39916719,60.00
Department of Health,St. Helens&Knowsley Hospitals NHS Trust,31/10/2021,Mobile Phones,CANCER NURSE SPEC MCG,VODAFONE LTD,39916719,12.00
Department of Health,St. Helens&Knowsley Hospitals NHS Trust,31/10/2021,Mobile Phones,CANCER NURSE SPEC MCG,VODAFONE LTD,39916719,60.00
Department of Health,St. Helens&Knowsley Hospitals NHS Trust,31/10/2021,Mobile Phones,CANCER NURSE SPEC SCG,VODAFONE LTD,39916719,16.00
Department of Health,St. Helens&Knowsley Hospitals NHS Trust,31/10/2021,Mobile Phones,CANCER NURSE SPEC SCG,VODAFONE LTD,39916719,80.02
Department of Health,St. Helens&Knowsley Hospitals NHS Trust,31/10/2021,Mobile Phones,CANCER SERVICES - ADMIN,VODAFONE LTD,39916719,27.60
Department of Health,St. Helens&Knowsley Hospitals NHS Trust,31/10/2021,Mobile Phones,CANCER SERVICES - ADMIN,VODAFONE LTD,39916719,138.01
Department of Health,St. Helens&Knowsley Hospitals NHS Trust,31/10/2021,Mobile Phones,CANCER SVS CO-ORDINATION,VODAFONE LTD,39916719,39.00
Department of Health,St. Helens&Knowsley Hospitals NHS Trust,31/10/2021,Mobile Phones,CANCER SVS CO-ORDINATION,VODAFONE LTD,39916719,195.00
Department of Health,St. Helens&Knowsley Hospitals NHS Trust,31/10/2021,Mobile Phones,CARDIOLOGY NURSING,VODAFONE LTD,39916719,33.76
Department of Health,St. Helens&Knowsley Hospitals NHS Trust,31/10/2021,Mobile Phones,CARDIOLOGY NURSING,VODAFONE LTD,39916719,168.81
Department of Health,St. Helens&Knowsley Hospitals NHS Trust,31/10/2021,Mobile Phones,CARDIOLOGY SNR MEDICAL,VODAFONE LTD,39916719,13.50
Department of Health,St. Helens&Knowsley Hospitals NHS Trust,31/10/2021,Mobile Phones,CARDIOLOGY SNR MEDICAL,VODAFONE LTD,39916719,67.50
Department of Health,St. Helens&Knowsley Hospitals NHS Trust,31/10/2021,Mobile Phones,CARDIO-RESPIRATORY (ECG),VODAFONE LTD,39916719,7.50
Department of Health,St. Helens&Knowsley Hospitals NHS Trust,31/10/2021,Mobile Phones,CARDIO-RESPIRATORY (ECG),VODAFONE LTD,39916719,37.50
Department of Health,St. Helens&Knowsley Hospitals NHS Trust,31/10/2021,Mobile Phones,CARE OF ELDERLY MED STAFF,VODAFONE LTD,39916719,110.76
Department of Health,St. Helens&Knowsley Hospitals NHS Trust,31/10/2021,Mobile Phones,CARE OF ELDERLY MED STAFF,VODAFONE LTD,39916719,553.81
Department of Health,St. Helens&Knowsley Hospitals NHS Trust,31/10/2021,Mobile Phones,CHAIRMAN'S OFFICE,VODAFONE LTD,39916719,42.08
Department of Health,St. Helens&Knowsley Hospitals NHS Trust,31/10/2021,Mobile Phones,CHAIRMAN'S OFFICE,VODAFONE LTD,39916719,210.38
Department of Health,St. Helens&Knowsley Hospitals NHS Trust,31/10/2021,Mobile Phones,CHIEF EXECUTIVE'S OFFICE,VODAFONE LTD,39916719,163.31
Department of Health,St. Helens&Knowsley Hospitals NHS Trust,31/10/2021,Mobile Phones,CHIEF EXECUTIVE'S OFFICE,VODAFONE LTD,39916719,816.54
Department of Health,St. Helens&Knowsley Hospitals NHS Trust,31/10/2021,Mobile Phones,CLINICAL GOVERNANCE TEAM,VODAFONE LTD,39916719,10.50
Department of Health,St. Helens&Knowsley Hospitals NHS Trust,31/10/2021,Mobile Phones,CLINICAL GOVERNANCE TEAM,VODAFONE LTD,39916719,52.50
Department of Health,St. Helens&Knowsley Hospitals NHS Trust,31/10/2021,Mobile Phones,CLINICAL PSYCHOLOGY,VODAFONE LTD,39916719,45.55
Department of Health,St. Helens&Knowsley Hospitals NHS Trust,31/10/2021,Mobile Phones,CLINICAL PSYCHOLOGY,VODAFONE LTD,39916719,227.74
Department of Health,St. Helens&Knowsley Hospitals NHS Trust,31/10/2021,Mobile Phones,CLINICAL SUPPORT DIV MGMT,VODAFONE LTD,39916719,12.00
Department of Health,St. Helens&Knowsley Hospitals NHS Trust,31/10/2021,Mobile Phones,CLINICAL SUPPORT DIV MGMT,VODAFONE LTD,39916719,60.00
Department of Health,St. Helens&Knowsley Hospitals NHS Trust,31/10/2021,Mobile Phones,COE NURSE SPECIALISTS,VODAFONE LTD,39916719,19.50
Department of Health,St. Helens&Knowsley Hospitals NHS Trust,31/10/2021,Mobile Phones,COE NURSE SPECIALISTS,VODAFONE LTD,39916719,97.50
Department of Health,St. Helens&Knowsley Hospitals NHS Trust,31/10/2021,Mobile Phones,COLD DECONTAMINATION,VODAFONE LTD,39916719,6.00
Department of Health,St. Helens&Knowsley Hospitals NHS Trust,31/10/2021,Mobile Phones,COLD DECONTAMINATION,VODAFONE LTD,39916719,30.00
Department of Health,St. Helens&Knowsley Hospitals NHS Trust,31/10/2021,Mobile Phones,COLD DECONTAMINATION WHISTON,VODAFONE LTD,39916719,7.50
Department of Health,St. Helens&Knowsley Hospitals NHS Trust,31/10/2021,Mobile Phones,COLD DECONTAMINATION WHISTON,VODAFONE LTD,39916719,37.50
Department of Health,St. Helens&Knowsley Hospitals NHS Trust,31/10/2021,Mobile Phones,COMMUNICATIONS,VODAFONE LTD,39916719,66.18
Department of Health,St. Helens&Knowsley Hospitals NHS Trust,31/10/2021,Mobile Phones,COMMUNICATIONS,VODAFONE LTD,39916719,330.91
Department of Health,St. Helens&Knowsley Hospitals NHS Trust,31/10/2021,Mobile Phones,COMMUNITY CARDIAC TEAM,VODAFONE LTD,39916719,65.40
Department of Health,St. Helens&Knowsley Hospitals NHS Trust,31/10/2021,Mobile Phones,COMMUNITY CARDIAC TEAM,VODAFONE LTD,39916719,327.00
Department of Health,St. Helens&Knowsley Hospitals NHS Trust,31/10/2021,Continence Products,COMMUNITY CONTINENCE SERVICE,ESSITY UK LTD,39900523,"40,479.96"
Department of Health,St. Helens&Knowsley Hospitals NHS Trust,31/10/2021,Mobile Phones,COMMUNITY CONTINENCE SERVICE,VODAFONE LTD,39916719,30.35
Department of Health,St. Helens&Knowsley Hospitals NHS Trust,31/10/2021,Mobile Phones,COMMUNITY CONTINENCE SERVICE,VODAFONE LTD,39916719,151.76
Department of Health,St. Helens&Knowsley Hospitals NHS Trust,31/10/2021,Mobile Phones,COMMUNITY FRAILTY SERVICE,VODAFONE LTD,39916719,82.84
Department of Health,St. Helens&Knowsley Hospitals NHS Trust,31/10/2021,Mobile Phones,COMMUNITY FRAILTY SERVICE,VODAFONE LTD,39916719,414.18
Department of Health,St. Helens&Knowsley Hospitals NHS Trust,31/10/2021,Mobile Phones,COMMUNITY MATRON,VODAFONE LTD,39916719,15.60
Department of Health,St. Helens&Knowsley Hospitals NHS Trust,31/10/2021,Mobile Phones,COMMUNITY MATRON,VODAFONE LTD,39916719,78.00
Department of Health,St. Helens&Knowsley Hospitals NHS Trust,31/10/2021,Mobile Phones,COMMUNITY MIDWIFERY,VODAFONE LTD,39916719,752.38
Department of Health,St. Helens&Knowsley Hospitals NHS Trust,31/10/2021,Mobile Phones,COMMUNITY MIDWIFERY,VODAFONE LTD,39916719,"3,761.96"
Department of Health,St. Helens&Knowsley Hospitals NHS Trust,31/10/2021,Mobile Phones,COMMUNITY NURSING MANAGEMENT,VODAFONE LTD,39916719,6.00
Department of Health,St. Helens&Knowsley Hospitals NHS Trust,31/10/2021,Mobile Phones,COMMUNITY NURSING MANAGEMENT,VODAFONE LTD,39916719,30.00
Department of Health,St. Helens&Knowsley Hospitals NHS Trust,31/10/2021,Mobile Phones,COMMUNITY PAEDIATRICS,VODAFONE LTD,39916719,181.84
Department of Health,St. Helens&Knowsley Hospitals NHS Trust,31/10/2021,Mobile Phones,COMMUNITY PAEDIATRICS,VODAFONE LTD,39916719,909.21
Department of Health,St. Helens&Knowsley Hospitals NHS Trust,31/10/2021,Rent,COMMUNITY RENT,FOUR ACRE HEALTH CENTRE,39916717,"57,553.00"
Department of Health,St. Helens&Knowsley Hospitals NHS Trust,31/10/2021,Mobile Phones,COMMUNITY SERVICES MANAGEMENT,VODAFONE LTD,39916719,46.82
Department of Health,St. Helens&Knowsley Hospitals NHS Trust,31/10/2021,Mobile Phones,COMMUNITY SERVICES MANAGEMENT,VODAFONE LTD,39916719,234.08
Department of Health,St. Helens&Knowsley Hospitals NHS Trust,31/10/2021,Mobile Phones,COMMUNITY SLA'S,VODAFONE LTD,39916719,48.00
Department of Health,St. Helens&Knowsley Hospitals NHS Trust,31/10/2021,Mobile Phones,COMMUNITY SLA'S,VODAFONE LTD,39916719,240.00
Department of Health,St. Helens&Knowsley Hospitals NHS Trust,31/10/2021,Mobile Phones,COMPLAINTS,VODAFONE LTD,39916719,6.00
Department of Health,St. Helens&Knowsley Hospitals NHS Trust,31/10/2021,Mobile Phones,COMPLAINTS,VODAFONE LTD,39916719,30.00
Department of Health,St. Helens&Knowsley Hospitals NHS Trust,31/10/2021,Mobile Phones,COVID,VODAFONE LTD,39916719,54.33
Department of Health,St. Helens&Knowsley Hospitals NHS Trust,31/10/2021,Mobile Phones,COVID,VODAFONE LTD,39916719,271.64
Department of Health,St. Helens&Knowsley Hospitals NHS Trust,31/10/2021,Mobile Phones,DELIVERY SUITE,VODAFONE LTD,39916719,1.50
Department of Health,St. Helens&Knowsley Hospitals NHS Trust,31/10/2021,Mobile Phones,DELIVERY SUITE,VODAFONE LTD,39916719,7.50
Department of Health,St. Helens&Knowsley Hospitals NHS Trust,31/10/2021,Mobile Phones,DERMATOLOGY,VODAFONE LTD,39916719,12.18
Department of Health,St. Helens&Knowsley Hospitals NHS Trust,31/10/2021,Mobile Phones,DERMATOLOGY,VODAFONE LTD,39916719,60.91
Department of Health,St. Helens&Knowsley Hospitals NHS Trust,31/10/2021,Mobile Phones,DIABETES NURSING,VODAFONE LTD,39916719,14.03
Department of Health,St. Helens&Knowsley Hospitals NHS Trust,31/10/2021,Mobile Phones,DIABETES NURSING,VODAFONE LTD,39916719,70.14
Department of Health,St. Helens&Knowsley Hospitals NHS Trust,31/10/2021,Mobile Phones,DIABETES SNR MEDICAL,VODAFONE LTD,39916719,12.00
Department of Health,St. Helens&Knowsley Hospitals NHS Trust,31/10/2021,Mobile Phones,DIABETES SNR MEDICAL,VODAFONE LTD,39916719,60.00
Department of Health,St. Helens&Knowsley Hospitals NHS Trust,31/10/2021,Mobile Phones,DIABETES STP,VODAFONE LTD,39916719,72.06
Department of Health,St. Helens&Knowsley Hospitals NHS Trust,31/10/2021,Mobile Phones,DIABETES STP,VODAFONE LTD,39916719,360.30
Department of Health,St. Helens&Knowsley Hospitals NHS Trust,31/10/2021,Mobile Phones,DIGITAL ASPIRATION PRGRME,VODAFONE LTD,39916719,6.00
Department of Health,St. Helens&Knowsley Hospitals NHS Trust,31/10/2021,Mobile Phones,DIGITAL ASPIRATION PRGRME,VODAFONE LTD,39916719,30.00
Department of Health,St. Helens&Knowsley Hospitals NHS Trust,31/10/2021,Computer Maintenance,DIGITAL SOLUTIONS,PCTI SOLUTIONS LTD,39482145,"-10,200.00"
Department of Health,St. Helens&Knowsley Hospitals NHS Trust,31/10/2021,Mobile Phones,DN CENTRAL,VODAFONE LTD,39916719,83.45
Department of Health,St. Helens&Knowsley Hospitals NHS Trust,31/10/2021,Mobile Phones,DN CENTRAL,VODAFONE LTD,39916719,417.24
Department of Health,St. Helens&Knowsley Hospitals NHS Trust,31/10/2021,Mobile Phones,DN HAYDOCK AND NEWTON,VODAFONE LTD,39916719,144.76
Department of Health,St. Helens&Knowsley Hospitals NHS Trust,31/10/2021,Mobile Phones,DN HAYDOCK AND NEWTON,VODAFONE LTD,39916719,723.80
Department of Health,St. Helens&Knowsley Hospitals NHS Trust,31/10/2021,Mobile Phones,DN NORTH,VODAFONE LTD,39916719,28.20
Department of Health,St. Helens&Knowsley Hospitals NHS Trust,31/10/2021,Mobile Phones,DN NORTH,VODAFONE LTD,39916719,141.00
Department of Health,St. Helens&Knowsley Hospitals NHS Trust,31/10/2021,Mobile Phones,DN SOUTH,VODAFONE LTD,39916719,231.74
Department of Health,St. Helens&Knowsley Hospitals NHS Trust,31/10/2021,Mobile Phones,DN SOUTH,VODAFONE LTD,39916719,"1,158.71"
Department of Health,St. Helens&Knowsley Hospitals NHS Trust,31/10/2021,Mobile Phones,DN St Helens OOH,VODAFONE LTD,39916719,28.22
Department of Health,St. Helens&Knowsley Hospitals NHS Trust,31/10/2021,Mobile Phones,DN St Helens OOH,VODAFONE LTD,39916719,141.12
Department of Health,St. Helens&Knowsley Hospitals NHS Trust,31/10/2021,Drugs,DRUGS/M+S UNALLOCATED WH,ALLIANCE HEALTHCARE DISTRIBUTION LTD,39735534,181.48
Department of Health,St. Helens&Knowsley Hospitals NHS Trust,31/10/2021,Drugs,DRUGS/M+S UNALLOCATED WH,ALLIANCE HEALTHCARE DISTRIBUTION LTD,39735534,963.91
Department of Health,St. Helens&Knowsley Hospitals NHS Trust,31/10/2021,Drugs,DRUGS/M+S UNALLOCATED WH,AAH PHARMACEUTICALS LTD,39910512,210.00
Department of Health,St. Helens&Knowsley Hospitals NHS Trust,31/10/2021,Drugs,DRUGS/M+S UNALLOCATED WH,PHOENIX HEALTHCARE DISTRIBUTION LTD,40009607,278.47
Department of Health,St. Helens&Knowsley Hospitals NHS Trust,31/10/2021,Drugs,DRUGS/M+S UNALLOCATED WH,PHOENIX HEALTHCARE DISTRIBUTION LTD,40009607,"1,392.36"
Department of Health,St. Helens&Knowsley Hospitals NHS Trust,31/10/2021,Drugs,DRUGS/M+S UNALLOCATED WH,ALLIANCE HEALTHCARE DISTRIBUTION LTD,40009609,158.77
Department of Health,St. Helens&Knowsley Hospitals NHS Trust,31/10/2021,Drugs,DRUGS/M+S UNALLOCATED WH,ALLIANCE HEALTHCARE DISTRIBUTION LTD,40009610,"2,501.61"
Department of Health,St. Helens&Knowsley Hospitals NHS Trust,31/10/2021,Drugs,DRUGS/M+S UNALLOCATED WH,AAH PHARMACEUTICALS LTD,40017646,30.67
Department of Health,St. Helens&Knowsley Hospitals NHS Trust,31/10/2021,Drugs,DRUGS/M+S UNALLOCATED WH,AAH PHARMACEUTICALS LTD,40017648,28.80
Department of Health,St. Helens&Knowsley Hospitals NHS Trust,31/10/2021,Mobile Phones,DUFFY SUITE INTERMEDIATE CARE UNIT,VODAFONE LTD,39916719,6.00
Department of Health,St. Helens&Knowsley Hospitals NHS Trust,31/10/2021,Mobile Phones,DUFFY SUITE INTERMEDIATE CARE UNIT,VODAFONE LTD,39916719,30.00
Department of Health,St. Helens&Knowsley Hospitals NHS Trust,31/10/2021,Mobile Phones,EMERGENCY PLANNING,VODAFONE LTD,39916719,6.08
Department of Health,St. Helens&Knowsley Hospitals NHS Trust,31/10/2021,Mobile Phones,EMERGENCY PLANNING,VODAFONE LTD,39916719,30.38
Department of Health,St. Helens&Knowsley Hospitals NHS Trust,31/10/2021,Mobile Phones,EPMA,VODAFONE LTD,39916719,18.00
Department of Health,St. Helens&Knowsley Hospitals NHS Trust,31/10/2021,Mobile Phones,EPMA,VODAFONE LTD,39916719,90.00
Department of Health,St. Helens&Knowsley Hospitals NHS Trust,31/10/2021,Mobile Phones,ESTATE SURVEY SECTION,VODAFONE LTD,39916719,6.00
Department of Health,St. Helens&Knowsley Hospitals NHS Trust,31/10/2021,Mobile Phones,ESTATE SURVEY SECTION,VODAFONE LTD,39916719,30.00
Department of Health,St. Helens&Knowsley Hospitals NHS Trust,31/10/2021,Mobile Phones,EXECUTIVE PAYROLL,VODAFONE LTD,39916719,42.16
Department of Health,St. Helens&Knowsley Hospitals NHS Trust,31/10/2021,Mobile Phones,EXECUTIVE PAYROLL,VODAFONE LTD,39916719,210.80
Department of Health,St. Helens&Knowsley Hospitals NHS Trust,31/10/2021,Mobile Phones,FACILITIES MANAGEMENT,VODAFONE LTD,39916719,49.58
Department of Health,St. Helens&Knowsley Hospitals NHS Trust,31/10/2021,Mobile Phones,FACILITIES MANAGEMENT,VODAFONE LTD,39916719,247.90
Department of Health,St. Helens&Knowsley Hospitals NHS Trust,31/10/2021,Mobile Phones,FALLS NURSE,VODAFONE LTD,39916719,7.64
Department of Health,St. Helens&Knowsley Hospitals NHS Trust,31/10/2021,Mobile Phones,FALLS NURSE,VODAFONE LTD,39916719,38.20
Department of Health,St. Helens&Knowsley Hospitals NHS Trust,31/10/2021,BI Developer,FINANCE DIRECTORATE HQ,CLOUD2 LTD,39768017,"49,000.00"
Department of Health,St. Helens&Knowsley Hospitals NHS Trust,31/10/2021,Mobile Phones,FINANCE DIRECTORATE HQ,VODAFONE LTD,39916719,178.80
Department of Health,St. Helens&Knowsley Hospitals NHS Trust,31/10/2021,Mobile Phones,FINANCE DIRECTORATE HQ,VODAFONE LTD,39916719,894.00
Department of Health,St. Helens&Knowsley Hospitals NHS Trust,31/10/2021,Mobile Phones,GASTRO UPPER GI FUND,VODAFONE LTD,39916719,6.00
Department of Health,St. Helens&Knowsley Hospitals NHS Trust,31/10/2021,Mobile Phones,GASTRO UPPER GI FUND,VODAFONE LTD,39916719,30.00
Department of Health,St. Helens&Knowsley Hospitals NHS Trust,31/10/2021,Mobile Phones,GASTROLOGY NURSING,VODAFONE LTD,39916719,81.07
Department of Health,St. Helens&Knowsley Hospitals NHS Trust,31/10/2021,Mobile Phones,GASTROLOGY NURSING,VODAFONE LTD,39916719,405.34
Department of Health,St. Helens&Knowsley Hospitals NHS Trust,31/10/2021,Mobile Phones,GASTROLOGY SNR MEDICAL,VODAFONE LTD,39916719,42.01
Department of Health,St. Helens&Knowsley Hospitals NHS Trust,31/10/2021,Mobile Phones,GASTROLOGY SNR MEDICAL,VODAFONE LTD,39916719,210.04
Department of Health,St. Helens&Knowsley Hospitals NHS Trust,31/10/2021,Med & Surg Equip Disp,GEN MED ENDOSCOPY H2,BOSTON SCIENTIFIC LTD,39864729,"24,930.34"
Department of Health,St. Helens&Knowsley Hospitals NHS Trust,31/10/2021,Med & Surg Equip Disp,GEN MED ENDOSCOPY H2,BOSTON SCIENTIFIC LTD,39864729,"4,986.06"
Department of Health,St. Helens&Knowsley Hospitals NHS Trust,31/10/2021,Mobile Phones,GEN MED ENDOSCOPY H2,VODAFONE LTD,39916719,6.00
Department of Health,St. Helens&Knowsley Hospitals NHS Trust,31/10/2021,Mobile Phones,GEN MED ENDOSCOPY H2,VODAFONE LTD,39916719,30.00
Department of Health,St. Helens&Knowsley Hospitals NHS Trust,31/10/2021,Mobile Phones,GEN MEDICINE MEDICAL STF,VODAFONE LTD,39916719,25.50
Department of Health,St. Helens&Knowsley Hospitals NHS Trust,31/10/2021,Mobile Phones,GEN MEDICINE MEDICAL STF,VODAFONE LTD,39916719,127.50
Department of Health,St. Helens&Knowsley Hospitals NHS Trust,31/10/2021,Mobile Phones,GENERAL SURGERY MEDICAL,VODAFONE LTD,39916719,30.30
Department of Health,St. Helens&Knowsley Hospitals NHS Trust,31/10/2021,Mobile Phones,GENERAL SURGERY MEDICAL,VODAFONE LTD,39916719,151.50
Department of Health,St. Helens&Knowsley Hospitals NHS Trust,31/10/2021,Mobile Phones,GYNAE OUTPATIEN ST HELENS,VODAFONE LTD,39916719,6.00
Department of Health,St. Helens&Knowsley Hospitals NHS Trust,31/10/2021,Mobile Phones,GYNAE OUTPATIEN ST HELENS,VODAFONE LTD,39916719,30.00
Department of Health,St. Helens&Knowsley Hospitals NHS Trust,31/10/2021,Laboratory Chemicals,HAEM + BLOOD TRANSFUSION,SYSMEX UK LTD,39797798,"39,858.71"
Department of Health,St. Helens&Knowsley Hospitals NHS Trust,31/10/2021,Laboratory Chemicals,HAEM + BLOOD TRANSFUSION,SYSMEX UK LTD,39797798,"7,971.74"
Department of Health,St. Helens&Knowsley Hospitals NHS Trust,31/10/2021,Mobile Phones,HAEM + BLOOD TRANSFUSION,VODAFONE LTD,39916719,24.00
Department of Health,St. Helens&Knowsley Hospitals NHS Trust,31/10/2021,Mobile Phones,HAEM + BLOOD TRANSFUSION,VODAFONE LTD,39916719,120.00
Department of Health,St. Helens&Knowsley Hospitals NHS Trust,31/10/2021,Mobile Phones,HAEMATOLOGY MEDICAL,VODAFONE LTD,39916719,31.80
Department of Health,St. Helens&Knowsley Hospitals NHS Trust,31/10/2021,Mobile Phones,HAEMATOLOGY MEDICAL,VODAFONE LTD,39916719,158.99
Department of Health,St. Helens&Knowsley Hospitals NHS Trust,31/10/2021,Mobile Phones,HISTOPATHOLOGY/MORTUARY,VODAFONE LTD,39916719,3.06
Department of Health,St. Helens&Knowsley Hospitals NHS Trust,31/10/2021,Mobile Phones,HISTOPATHOLOGY/MORTUARY,VODAFONE LTD,39916719,15.30
Department of Health,St. Helens&Knowsley Hospitals NHS Trust,31/10/2021,Mobile Phones,HOSPITAL DISCHARGE TEAM,VODAFONE LTD,39916719,9.81
Department of Health,St. Helens&Knowsley Hospitals NHS Trust,31/10/2021,Mobile Phones,HOSPITAL DISCHARGE TEAM,VODAFONE LTD,39916719,49.03
Department of Health,St. Helens&Knowsley Hospitals NHS Trust,31/10/2021,Postage & Carriage,HOTEL SERVICES MGT WHIST,PITNEY BOWES LTD,39765425,"41,641.16"
Department of Health,St. Helens&Knowsley Hospitals NHS Trust,31/10/2021,Mobile Phones,HUMAN RESOURCES - CORE HR,VODAFONE LTD,39916719,19.00
Department of Health,St. Helens&Knowsley Hospitals NHS Trust,31/10/2021,Mobile Phones,HUMAN RESOURCES - CORE HR,VODAFONE LTD,39916719,95.00
Department of Health,St. Helens&Knowsley Hospitals NHS Trust,31/10/2021,Mobile Phones,HUMAN RESOURCES - RESOURCING,VODAFONE LTD,39916719,216.47
Department of Health,St. Helens&Knowsley Hospitals NHS Trust,31/10/2021,Mobile Phones,HUMAN RESOURCES - RESOURCING,VODAFONE LTD,39916719,"1,082.35"
Department of Health,St. Helens&Knowsley Hospitals NHS Trust,31/10/2021,Mobile Phones,ICU MEDICAL STAFF WHISTON,VODAFONE LTD,39916719,13.63
Department of Health,St. Helens&Knowsley Hospitals NHS Trust,31/10/2021,Mobile Phones,ICU MEDICAL STAFF WHISTON,VODAFONE LTD,39916719,68.13
Department of Health,St. Helens&Knowsley Hospitals NHS Trust,31/10/2021,Mobile Phones,ICU NURSING WHISTON,VODAFONE LTD,39916719,1.50
Department of Health,St. Helens&Knowsley Hospitals NHS Trust,31/10/2021,Mobile Phones,ICU NURSING WHISTON,VODAFONE LTD,39916719,7.50
Department of Health,St. Helens&Knowsley Hospitals NHS Trust,31/10/2021,Computer Hardware Purch,IMT SCHEMES FUND,HP INC UK LTD,40033869,"27,666.38"
Department of Health,St. Helens&Knowsley Hospitals NHS Trust,31/10/2021,Computer Hardware Purch,IMT SCHEMES FUND,HP INC UK LTD,40033869,"5,533.28"
Department of Health,St. Helens&Knowsley Hospitals NHS Trust,31/10/2021,Computer Hardware Purch,IMT SCHEMES FUND,HP INC UK LTD,40033870,"35,891.52"
Department of Health,St. Helens&Knowsley Hospitals NHS Trust,31/10/2021,Computer Hardware Purch,IMT SCHEMES FUND,HP INC UK LTD,40033870,"7,178.30"
Department of Health,St. Helens&Knowsley Hospitals NHS Trust,31/10/2021,Mobile Phones,INFECTION CONTROL,VODAFONE LTD,39916719,10.50
Department of Health,St. Helens&Knowsley Hospitals NHS Trust,31/10/2021,Mobile Phones,INFECTION CONTROL,VODAFONE LTD,39916719,52.50
Department of Health,St. Helens&Knowsley Hospitals NHS Trust,31/10/2021,Lease Rents,INFORMATION DEPARTMENT,SHL PROPERTIES AND INVESTMENTS LTD,39775072,"29,082.00"
Department of Health,St. Helens&Knowsley Hospitals NHS Trust,31/10/2021,Mobile Phones,INFORMATION DEPARTMENT,VODAFONE LTD,39916719,30.00
Department of Health,St. Helens&Knowsley Hospitals NHS Trust,31/10/2021,Mobile Phones,INFORMATION DEPARTMENT,VODAFONE LTD,39916719,150.00
Department of Health,St. Helens&Knowsley Hospitals NHS Trust,31/10/2021,Mobile Phones,INTERNATIONAL RECRUITMENT,VODAFONE LTD,39916719,6.00
Department of Health,St. Helens&Knowsley Hospitals NHS Trust,31/10/2021,Mobile Phones,INTERNATIONAL RECRUITMENT,VODAFONE LTD,39916719,30.00
Department of Health,St. Helens&Knowsley Hospitals NHS Trust,31/10/2021,Mobile Phones,IRREG MAINT WHISTON,VODAFONE LTD,39916719,18.00
Department of Health,St. Helens&Knowsley Hospitals NHS Trust,31/10/2021,Mobile Phones,IRREG MAINT WHISTON,VODAFONE LTD,39916719,90.00
Department of Health,St. Helens&Knowsley Hospitals NHS Trust,31/10/2021,Mobile Phones,IV THERAPY ST HELENS,VODAFONE LTD,39916719,43.51
Department of Health,St. Helens&Knowsley Hospitals NHS Trust,31/10/2021,Mobile Phones,IV THERAPY ST HELENS,VODAFONE LTD,39916719,217.54
Department of Health,St. Helens&Knowsley Hospitals NHS Trust,31/10/2021,Mobile Phones,LEGAL SERVICES,VODAFONE LTD,39916719,6.00
Department of Health,St. Helens&Knowsley Hospitals NHS Trust,31/10/2021,Mobile Phones,LEGAL SERVICES,VODAFONE LTD,39916719,30.00
Department of Health,St. Helens&Knowsley Hospitals NHS Trust,31/10/2021,Mobile Phones,LE-HELPDESK,VODAFONE LTD,39916719,80.40
Department of Health,St. Helens&Knowsley Hospitals NHS Trust,31/10/2021,Mobile Phones,LE-HELPDESK,VODAFONE LTD,39916719,402.00
Department of Health,St. Helens&Knowsley Hospitals NHS Trust,31/10/2021,Mobile Phones,LE-MANAGEMENT TEAM,VODAFONE LTD,39916719,122.75
Department of Health,St. Helens&Knowsley Hospitals NHS Trust,31/10/2021,Mobile Phones,LE-MANAGEMENT TEAM,VODAFONE LTD,39916719,613.74
Department of Health,St. Helens&Knowsley Hospitals NHS Trust,31/10/2021,Rent,LE-MANAGEMENT TEAM,SHL PROPERTIES AND INVESTMENTS LTD,39775074,"54,000.00"
Department of Health,St. Helens&Knowsley Hospitals NHS Trust,31/10/2021,Mobile Phones,LE-ROTATE AND CTRCT AMNDMNTS,VODAFONE LTD,39916719,42.00
Department of Health,St. Helens&Knowsley Hospitals NHS Trust,31/10/2021,Mobile Phones,LE-ROTATE AND CTRCT AMNDMNTS,VODAFONE LTD,39916719,210.00
Department of Health,St. Helens&Knowsley Hospitals NHS Trust,31/10/2021,Mobile Phones,LIBRARY SERVICES,VODAFONE LTD,39916719,6.00
Department of Health,St. Helens&Knowsley Hospitals NHS Trust,31/10/2021,Mobile Phones,LIBRARY SERVICES,VODAFONE LTD,39916719,30.00
Department of Health,St. Helens&Knowsley Hospitals NHS Trust,31/10/2021,Mobile Phones,MARSHALLS CROSS MEDICAL CENTRE,VODAFONE LTD,39916719,6.00
Department of Health,St. Helens&Knowsley Hospitals NHS Trust,31/10/2021,Mobile Phones,MARSHALLS CROSS MEDICAL CENTRE,VODAFONE LTD,39916719,30.00
Department of Health,St. Helens&Knowsley Hospitals NHS Trust,31/10/2021,Mobile Phones,MCG DISCHARGE CO-ORDINATORS,VODAFONE LTD,39916719,85.67
Department of Health,St. Helens&Knowsley Hospitals NHS Trust,31/10/2021,Mobile Phones,MCG DISCHARGE CO-ORDINATORS,VODAFONE LTD,39916719,428.37
Department of Health,St. Helens&Knowsley Hospitals NHS Trust,31/10/2021,Mobile Phones,MCG JUNIOR MEDICAL STAFFING,VODAFONE LTD,39916719,5.98
Department of Health,St. Helens&Knowsley Hospitals NHS Trust,31/10/2021,Mobile Phones,MCG JUNIOR MEDICAL STAFFING,VODAFONE LTD,39916719,29.91
Department of Health,St. Helens&Knowsley Hospitals NHS Trust,31/10/2021,Mobile Phones,MED SECRETARIES BAND 3,VODAFONE LTD,39916719,7.50
Department of Health,St. Helens&Knowsley Hospitals NHS Trust,31/10/2021,Mobile Phones,MED SECRETARIES BAND 3,VODAFONE LTD,39916719,37.50
Department of Health,St. Helens&Knowsley Hospitals NHS Trust,31/10/2021,Mobile Phones,MEDICAL CARE GROUP MGT,VODAFONE LTD,39916719,190.60
Department of Health,St. Helens&Knowsley Hospitals NHS Trust,31/10/2021,Mobile Phones,MEDICAL CARE GROUP MGT,VODAFONE LTD,39916719,952.98
Department of Health,St. Helens&Knowsley Hospitals NHS Trust,31/10/2021,Mobile Phones,MGMT SPECIALIST MIDWIVES,VODAFONE LTD,39916719,88.26
Department of Health,St. Helens&Knowsley Hospitals NHS Trust,31/10/2021,Mobile Phones,MGMT SPECIALIST MIDWIVES,VODAFONE LTD,39916719,441.30
Department of Health,St. Helens&Knowsley Hospitals NHS Trust,31/10/2021,Laboratory Equipment,MICROBIOLOGY DEPT,CHRYSTAL CONSULTING LTD,40018310,"59,643.44"
Department of Health,St. Helens&Knowsley Hospitals NHS Trust,31/10/2021,Laboratory Equipment,MICROBIOLOGY DEPT,CHRYSTAL CONSULTING LTD,40018310,"11,928.69"
Department of Health,St. Helens&Knowsley Hospitals NHS Trust,31/10/2021,Mobile Phones,MICROBIOLOGY DEPT,VODAFONE LTD,39916719,46.50
Department of Health,St. Helens&Knowsley Hospitals NHS Trust,31/10/2021,Mobile Phones,MICROBIOLOGY DEPT,VODAFONE LTD,39916719,232.50
Department of Health,St. Helens&Knowsley Hospitals NHS Trust,31/10/2021,Mobile Phones,MICROBIOLOGY MED STAFF,VODAFONE LTD,39916719,12.00
Department of Health,St. Helens&Knowsley Hospitals NHS Trust,31/10/2021,Mobile Phones,MICROBIOLOGY MED STAFF,VODAFONE LTD,39916719,60.00
Department of Health,St. Helens&Knowsley Hospitals NHS Trust,31/10/2021,Computer Maintenance,MMDA PROGRAMME COSTS - SHARED SERVICES,PCTI SOLUTIONS LTD,39482145,"51,000.00"
Department of Health,St. Helens&Knowsley Hospitals NHS Trust,31/10/2021,Computer Maintenance,MMDA PROGRAMME COSTS - SHARED SERVICES,PCTI SOLUTIONS LTD,39482145,"10,200.00"
Department of Health,St. Helens&Knowsley Hospitals NHS Trust,31/10/2021,Computer Maintenance,MMDA PROGRAMME COSTS - SHARED SERVICES,CCUBE SOLUTIONS LTD,39790091,"14,924.20"
Department of Health,St. Helens&Knowsley Hospitals NHS Trust,31/10/2021,Computer Maintenance,MMDA PROGRAMME COSTS - SHARED SERVICES,CCUBE SOLUTIONS LTD,39790091,"43,490.53"
Department of Health,St. Helens&Knowsley Hospitals NHS Trust,31/10/2021,Computer Maintenance,MMDA PROGRAMME COSTS - SHARED SERVICES,CCUBE SOLUTIONS LTD,39790091,"11,682.95"
Department of Health,St. Helens&Knowsley Hospitals NHS Trust,31/10/2021,Computer Maintenance,MMDA PROGRAMME COSTS - SHARED SERVICES,SYSTEM C HEALTHCARE LTD,39814615,"9,838.01"
Department of Health,St. Helens&Knowsley Hospitals NHS Trust,31/10/2021,Computer Software/License,MMDA PROGRAMME COSTS - SHARED SERVICES,CLINISYS SOLUTIONS LTD,39834684,"76,453.78"
Department of Health,St. Helens&Knowsley Hospitals NHS Trust,31/10/2021,Mobile Phones,MMDA PROGRAMME COSTS - SHARED SERVICES,VODAFONE LTD,39916719,483.39
Department of Health,St. Helens&Knowsley Hospitals NHS Trust,31/10/2021,Mobile Phones,MMDA PROGRAMME COSTS - SHARED SERVICES,VODAFONE LTD,39916719,"2,416.97"
Department of Health,St. Helens&Knowsley Hospitals NHS Trust,31/10/2021,Rent,MMDA PROGRAMME COSTS - SHARED SERVICES,SHL PROPERTIES AND INVESTMENTS LTD,39786717,"103,500.00"
Department of Health,St. Helens&Knowsley Hospitals NHS Trust,31/10/2021,Mobile Phones,NEWS2 Project,VODAFONE LTD,39916719,6.00
Department of Health,St. Helens&Knowsley Hospitals NHS Trust,31/10/2021,Mobile Phones,NEWS2 Project,VODAFONE LTD,39916719,30.00
Department of Health,St. Helens&Knowsley Hospitals NHS Trust,31/10/2021,Mobile Phones,NEWTON HOSPITAL OP,VODAFONE LTD,39916719,9.00
Department of Health,St. Helens&Knowsley Hospitals NHS Trust,31/10/2021,Mobile Phones,NEWTON HOSPITAL OP,VODAFONE LTD,39916719,45.00
Department of Health,St. Helens&Knowsley Hospitals NHS Trust,31/10/2021,Mobile Phones,NEWTON INTERMEDIATE CARE SERVICE,VODAFONE LTD,39916719,71.23
Department of Health,St. Helens&Knowsley Hospitals NHS Trust,31/10/2021,Mobile Phones,NEWTON INTERMEDIATE CARE SERVICE,VODAFONE LTD,39916719,356.13
Department of Health,St. Helens&Knowsley Hospitals NHS Trust,31/10/2021,Mobile Phones,NURSING ADMINISTRATION,VODAFONE LTD,39916719,103.50
Department of Health,St. Helens&Knowsley Hospitals NHS Trust,31/10/2021,Mobile Phones,NURSING ADMINISTRATION,VODAFONE LTD,39916719,517.50
Department of Health,St. Helens&Knowsley Hospitals NHS Trust,31/10/2021,Mobile Phones,NURSING DIRECTOR ADMIN STAFF,VODAFONE LTD,39916719,6.00
Department of Health,St. Helens&Knowsley Hospitals NHS Trust,31/10/2021,Mobile Phones,NURSING DIRECTOR ADMIN STAFF,VODAFONE LTD,39916719,30.00
Department of Health,St. Helens&Knowsley Hospitals NHS Trust,31/10/2021,Mobile Phones,OBS + GYNAE MEDICAL STAFF,VODAFONE LTD,39916719,12.00
Department of Health,St. Helens&Knowsley Hospitals NHS Trust,31/10/2021,Mobile Phones,OBS + GYNAE MEDICAL STAFF,VODAFONE LTD,39916719,60.00
Department of Health,St. Helens&Knowsley Hospitals NHS Trust,31/10/2021,Mobile Phones,OCCUPATIONAL HEALTH MED,VODAFONE LTD,39916719,16.53
Department of Health,St. Helens&Knowsley Hospitals NHS Trust,31/10/2021,Mobile Phones,OCCUPATIONAL HEALTH MED,VODAFONE LTD,39916719,82.65
Department of Health,St. Helens&Knowsley Hospitals NHS Trust,31/10/2021,Mobile Phones,OCCUPATIONAL HEALTH NURS,VODAFONE LTD,39916719,18.00
Department of Health,St. Helens&Knowsley Hospitals NHS Trust,31/10/2021,Mobile Phones,OCCUPATIONAL HEALTH NURS,VODAFONE LTD,39916719,90.00
Department of Health,St. Helens&Knowsley Hospitals NHS Trust,31/10/2021,Mobile Phones,OPHTHALMOLOGY MEDICAL,VODAFONE LTD,39916719,9.61
Department of Health,St. Helens&Knowsley Hospitals NHS Trust,31/10/2021,Mobile Phones,OPHTHALMOLOGY MEDICAL,VODAFONE LTD,39916719,48.07
Department of Health,St. Helens&Knowsley Hospitals NHS Trust,31/10/2021,Mobile Phones,ORGANISATIONAL L And D,VODAFONE LTD,39916719,1.50
Department of Health,St. Helens&Knowsley Hospitals NHS Trust,31/10/2021,Mobile Phones,ORGANISATIONAL L And D,VODAFONE LTD,39916719,7.50
Department of Health,St. Helens&Knowsley Hospitals NHS Trust,31/10/2021,Mobile Phones,ORTHOPAEDIC MEDICAL STAFF,VODAFONE LTD,39916719,24.18
Department of Health,St. Helens&Knowsley Hospitals NHS Trust,31/10/2021,Mobile Phones,ORTHOPAEDIC MEDICAL STAFF,VODAFONE LTD,39916719,120.90
Department of Health,St. Helens&Knowsley Hospitals NHS Trust,31/10/2021,Mobile Phones,OUTPATIENTS ST HELENS,VODAFONE LTD,39916719,6.00
Department of Health,St. Helens&Knowsley Hospitals NHS Trust,31/10/2021,Mobile Phones,OUTPATIENTS ST HELENS,VODAFONE LTD,39916719,30.00
Department of Health,St. Helens&Knowsley Hospitals NHS Trust,31/10/2021,Mobile Phones,PAED SPECIALIST NURSES,VODAFONE LTD,39916719,19.52
Department of Health,St. Helens&Knowsley Hospitals NHS Trust,31/10/2021,Mobile Phones,PAED SPECIALIST NURSES,VODAFONE LTD,39916719,97.62
Department of Health,St. Helens&Knowsley Hospitals NHS Trust,31/10/2021,Mobile Phones,PAEDIATRIC CONTINENCE,VODAFONE LTD,39916719,6.00
Department of Health,St. Helens&Knowsley Hospitals NHS Trust,31/10/2021,Mobile Phones,PAEDIATRIC CONTINENCE,VODAFONE LTD,39916719,30.00
Department of Health,St. Helens&Knowsley Hospitals NHS Trust,31/10/2021,Mobile Phones,PAEDIATRIC MEDICAL STAFF,VODAFONE LTD,39916719,1.50
Department of Health,St. Helens&Knowsley Hospitals NHS Trust,31/10/2021,Mobile Phones,PAEDIATRIC MEDICAL STAFF,VODAFONE LTD,39916719,7.50
Department of Health,St. Helens&Knowsley Hospitals NHS Trust,31/10/2021,Mobile Phones,PAEDIATRICS WARD CLERKS,VODAFONE LTD,39916719,1.50
Department of Health,St. Helens&Knowsley Hospitals NHS Trust,31/10/2021,Mobile Phones,PAEDIATRICS WARD CLERKS,VODAFONE LTD,39916719,7.50
Department of Health,St. Helens&Knowsley Hospitals NHS Trust,31/10/2021,Mobile Phones,PALLIATIVE CARE WHISTON,VODAFONE LTD,39916719,18.03
Department of Health,St. Helens&Knowsley Hospitals NHS Trust,31/10/2021,Mobile Phones,PALLIATIVE CARE WHISTON,VODAFONE LTD,39916719,90.14
Department of Health,St. Helens&Knowsley Hospitals NHS Trust,31/10/2021,Mobile Phones,PATHOLOGY GENERAL,VODAFONE LTD,39916719,113.07
Department of Health,St. Helens&Knowsley Hospitals NHS Trust,31/10/2021,Mobile Phones,PATHOLOGY GENERAL,VODAFONE LTD,39916719,565.34
Department of Health,St. Helens&Knowsley Hospitals NHS Trust,31/10/2021,Mobile Phones,PATIENT ACCESS MGMT,VODAFONE LTD,39916719,18.02
Department of Health,St. Helens&Knowsley Hospitals NHS Trust,31/10/2021,Mobile Phones,PATIENT ACCESS MGMT,VODAFONE LTD,39916719,90.12
Department of Health,St. Helens&Knowsley Hospitals NHS Trust,31/10/2021,Mobile Phones,PAYING PATIENTS,VODAFONE LTD,39916719,18.00
Department of Health,St. Helens&Knowsley Hospitals NHS Trust,31/10/2021,Mobile Phones,PAYING PATIENTS,VODAFONE LTD,39916719,90.00
Department of Health,St. Helens&Knowsley Hospitals NHS Trust,31/10/2021,Mobile Phones,PAYROLL SERVICES,VODAFONE LTD,39916719,109.13
Department of Health,St. Helens&Knowsley Hospitals NHS Trust,31/10/2021,Mobile Phones,PAYROLL SERVICES,VODAFONE LTD,39916719,545.67
Department of Health,St. Helens&Knowsley Hospitals NHS Trust,31/10/2021,Lease Rents,PFI DESIGN + CONSTRUCTION,HLGB,39528552,"64,260.00"
Department of Health,St. Helens&Knowsley Hospitals NHS Trust,31/10/2021,Lease Rents,PFI DESIGN + CONSTRUCTION,HLGB,39528552,"7,500.00"
Department of Health,St. Helens&Knowsley Hospitals NHS Trust,31/10/2021,Mobile Phones,PFI DESIGN + CONSTRUCTION,VODAFONE LTD,39916719,42.00
Department of Health,St. Helens&Knowsley Hospitals NHS Trust,31/10/2021,Mobile Phones,PFI DESIGN + CONSTRUCTION,VODAFONE LTD,39916719,210.00
Department of Health,St. Helens&Knowsley Hospitals NHS Trust,31/10/2021,Miscellaneous Expenditure,PFI ENABLING WORKS,NEW HOSPITALS (ST HELENS & KNOWSLEY) LTD,39834553,"1,204,455.78"
Department of Health,St. Helens&Knowsley Hospitals NHS Trust,31/10/2021,Miscellaneous Expenditure,PFI UNITARY PAYMENT,NEW HOSPITALS (ST HELENS & KNOWSLEY) LTD,39814623,"13,477,578.87"
Department of Health,St. Helens&Knowsley Hospitals NHS Trust,31/10/2021,Mobile Phones,PHARMACY GENERAL,VODAFONE LTD,39916719,113.45
Department of Health,St. Helens&Knowsley Hospitals NHS Trust,31/10/2021,Mobile Phones,PHARMACY GENERAL,VODAFONE LTD,39916719,567.26
Department of Health,St. Helens&Knowsley Hospitals NHS Trust,31/10/2021,Laboratory Test Kits,POINT OF CARE,CARDIFF & VALE ULHB,39936585,"21,635.00"
Department of Health,St. Helens&Knowsley Hospitals NHS Trust,31/10/2021,Laboratory Test Kits,POINT OF CARE,CARDIFF & VALE ULHB,39936585,"4,327.00"
Department of Health,St. Helens&Knowsley Hospitals NHS Trust,31/10/2021,Mobile Phones,PROJECTS And TRAINING,VODAFONE LTD,39916719,49.50
Department of Health,St. Helens&Knowsley Hospitals NHS Trust,31/10/2021,Mobile Phones,PROJECTS And TRAINING,VODAFONE LTD,39916719,247.50
Department of Health,St. Helens&Knowsley Hospitals NHS Trust,31/10/2021,Mobile Phones,RADIOGRAPHY WHISTON,VODAFONE LTD,39916719,12.00
Department of Health,St. Helens&Knowsley Hospitals NHS Trust,31/10/2021,Mobile Phones,RADIOGRAPHY WHISTON,VODAFONE LTD,39916719,60.00
Department of Health,St. Helens&Knowsley Hospitals NHS Trust,31/10/2021,Mobile Phones,RADIOLOGY MEDICAL STAFF,VODAFONE LTD,39916719,6.00
Department of Health,St. Helens&Knowsley Hospitals NHS Trust,31/10/2021,Mobile Phones,RADIOLOGY MEDICAL STAFF,VODAFONE LTD,39916719,30.00
Department of Health,St. Helens&Knowsley Hospitals NHS Trust,31/10/2021,Rates,RATES/WATER ST HELENS,ST HELENS COUNCIL,39948861,"60,416.00"
Department of Health,St. Helens&Knowsley Hospitals NHS Trust,31/10/2021,Rates,RATES/WATER WHISTON,KNOWSLEY METROPOLITAN BOROUGH COUNCIL,39948860,"74,225.00"
Department of Health,St. Helens&Knowsley Hospitals NHS Trust,31/10/2021,Mobile Phones,RD AND I,VODAFONE LTD,39916719,19.50
Department of Health,St. Helens&Knowsley Hospitals NHS Trust,31/10/2021,Mobile Phones,RD AND I,VODAFONE LTD,39916719,97.50
Department of Health,St. Helens&Knowsley Hospitals NHS Trust,31/10/2021,Mobile Phones,REABLEMENT TEAM,VODAFONE LTD,39916719,22.33
Department of Health,St. Helens&Knowsley Hospitals NHS Trust,31/10/2021,Mobile Phones,REABLEMENT TEAM,VODAFONE LTD,39916719,111.63
Department of Health,St. Helens&Knowsley Hospitals NHS Trust,31/10/2021,Mobile Phones,REGIONAL CANCER TRANSFORMATION,VODAFONE LTD,39916719,12.00
Department of Health,St. Helens&Knowsley Hospitals NHS Trust,31/10/2021,Mobile Phones,REGIONAL CANCER TRANSFORMATION,VODAFONE LTD,39916719,60.00
Department of Health,St. Helens&Knowsley Hospitals NHS Trust,31/10/2021,Mobile Phones,REGIONAL VACCINATION CENTRE,VODAFONE LTD,39916719,136.80
Department of Health,St. Helens&Knowsley Hospitals NHS Trust,31/10/2021,Mobile Phones,REGIONAL VACCINATION CENTRE,VODAFONE LTD,39916719,684.00
Department of Health,St. Helens&Knowsley Hospitals NHS Trust,31/10/2021,Independent Sector,RESERVES,FAIRFIELD INDEPENDENT HOSPITAL,39740911,"35,700.00"
Department of Health,St. Helens&Knowsley Hospitals NHS Trust,31/10/2021,Mobile Phones,RESPIRATORY NURSING,VODAFONE LTD,39916719,33.23
Department of Health,St. Helens&Knowsley Hospitals NHS Trust,31/10/2021,Mobile Phones,RESPIRATORY NURSING,VODAFONE LTD,39916719,166.13
Department of Health,St. Helens&Knowsley Hospitals NHS Trust,31/10/2021,Mobile Phones,RESPIRATORY SNR MEDICAL,VODAFONE LTD,39916719,71.19
Department of Health,St. Helens&Knowsley Hospitals NHS Trust,31/10/2021,Mobile Phones,RESPIRATORY SNR MEDICAL,VODAFONE LTD,39916719,355.97
Department of Health,St. Helens&Knowsley Hospitals NHS Trust,31/10/2021,Mobile Phones,RESUSCITATION TRAINING,VODAFONE LTD,39916719,6.00
Department of Health,St. Helens&Knowsley Hospitals NHS Trust,31/10/2021,Mobile Phones,RESUSCITATION TRAINING,VODAFONE LTD,39916719,30.00
Department of Health,St. Helens&Knowsley Hospitals NHS Trust,31/10/2021,Mobile Phones,SAFEGUARDING,VODAFONE LTD,39916719,16.05
Department of Health,St. Helens&Knowsley Hospitals NHS Trust,31/10/2021,Mobile Phones,SAFEGUARDING,VODAFONE LTD,39916719,80.25
Department of Health,St. Helens&Knowsley Hospitals NHS Trust,31/10/2021,Mobile Phones,SANDERSON SUITE GENERAL SURGERY,VODAFONE LTD,39916719,12.00
Department of Health,St. Helens&Knowsley Hospitals NHS Trust,31/10/2021,Mobile Phones,SANDERSON SUITE GENERAL SURGERY,VODAFONE LTD,39916719,60.00
Department of Health,St. Helens&Knowsley Hospitals NHS Trust,31/10/2021,Mobile Phones,SECURITY SERVICES,VODAFONE LTD,39916719,75.14
Department of Health,St. Helens&Knowsley Hospitals NHS Trust,31/10/2021,Mobile Phones,SECURITY SERVICES,VODAFONE LTD,39916719,375.69
Department of Health,St. Helens&Knowsley Hospitals NHS Trust,31/10/2021,Mobile Phones,SEDDON SUITE TRAUMA REHAB UNIT,VODAFONE LTD,39916719,37.74
Department of Health,St. Helens&Knowsley Hospitals NHS Trust,31/10/2021,Mobile Phones,SEDDON SUITE TRAUMA REHAB UNIT,VODAFONE LTD,39916719,188.72
Department of Health,St. Helens&Knowsley Hospitals NHS Trust,31/10/2021,Mobile Phones,SEPSIS,VODAFONE LTD,39916719,6.00
Department of Health,St. Helens&Knowsley Hospitals NHS Trust,31/10/2021,Mobile Phones,SEPSIS,VODAFONE LTD,39916719,30.00
Department of Health,St. Helens&Knowsley Hospitals NHS Trust,31/10/2021,Mobile Phones,SERV INCR 4 TEACHING-SIFT,VODAFONE LTD,39916719,30.10
Department of Health,St. Helens&Knowsley Hospitals NHS Trust,31/10/2021,Mobile Phones,SERV INCR 4 TEACHING-SIFT,VODAFONE LTD,39916719,150.51
Department of Health,St. Helens&Knowsley Hospitals NHS Trust,31/10/2021,Mobile Phones,SERVICE DELIVERY INFRASTRUCTURE,VODAFONE LTD,39916719,24.20
Department of Health,St. Helens&Knowsley Hospitals NHS Trust,31/10/2021,Mobile Phones,SERVICE DELIVERY INFRASTRUCTURE,VODAFONE LTD,39916719,120.98
Department of Health,St. Helens&Knowsley Hospitals NHS Trust,31/10/2021,Mobile Phones,SERVICE DELIVERY OPERATIONS,VODAFONE LTD,39916719,6.00
Department of Health,St. Helens&Knowsley Hospitals NHS Trust,31/10/2021,Mobile Phones,SERVICE DELIVERY OPERATIONS,VODAFONE LTD,39916719,30.00
Department of Health,St. Helens&Knowsley Hospitals NHS Trust,31/10/2021,Mobile Phones,SEXUAL HEALTH,VODAFONE LTD,39916719,127.97
Department of Health,St. Helens&Knowsley Hospitals NHS Trust,31/10/2021,Mobile Phones,SEXUAL HEALTH,VODAFONE LTD,39916719,639.83
Department of Health,St. Helens&Knowsley Hospitals NHS Trust,31/10/2021,Mobile Phones,SHARED CARE RECORD - ST HELENS HEALTH ECONOMY,VODAFONE LTD,39916719,18.00
Department of Health,St. Helens&Knowsley Hospitals NHS Trust,31/10/2021,Mobile Phones,SHARED CARE RECORD - ST HELENS HEALTH ECONOMY,VODAFONE LTD,39916719,90.00
Department of Health,St. Helens&Knowsley Hospitals NHS Trust,31/10/2021,Mobile Phones,SOHT BLOOD SCIENCES,VODAFONE LTD,39916719,1.50
Department of Health,St. Helens&Knowsley Hospitals NHS Trust,31/10/2021,Mobile Phones,SOHT BLOOD SCIENCES,VODAFONE LTD,39916719,7.50
Department of Health,St. Helens&Knowsley Hospitals NHS Trust,31/10/2021,Mobile Phones,SOHT PHLEBOTOMY,VODAFONE LTD,39916719,27.60
Department of Health,St. Helens&Knowsley Hospitals NHS Trust,31/10/2021,Mobile Phones,SOHT PHLEBOTOMY,VODAFONE LTD,39916719,138.02
Department of Health,St. Helens&Knowsley Hospitals NHS Trust,31/10/2021,Mobile Phones,ST HELENS CONTACT CARE IC THERAPY TEAM,VODAFONE LTD,39916719,4.90
Department of Health,St. Helens&Knowsley Hospitals NHS Trust,31/10/2021,Mobile Phones,ST HELENS CONTACT CARE IC THERAPY TEAM,VODAFONE LTD,39916719,24.50
Department of Health,St. Helens&Knowsley Hospitals NHS Trust,31/10/2021,Mobile Phones,ST HELENS CONTACT CARES REABLEMENT TEAM,VODAFONE LTD,39916719,13.26
Department of Health,St. Helens&Knowsley Hospitals NHS Trust,31/10/2021,Mobile Phones,ST HELENS CONTACT CARES REABLEMENT TEAM,VODAFONE LTD,39916719,66.29
Department of Health,St. Helens&Knowsley Hospitals NHS Trust,31/10/2021,Mobile Phones,SURGICAL CARE MANAGEMENT,VODAFONE LTD,39916719,131.05
Department of Health,St. Helens&Knowsley Hospitals NHS Trust,31/10/2021,Mobile Phones,SURGICAL CARE MANAGEMENT,VODAFONE LTD,39916719,655.23
Department of Health,St. Helens&Knowsley Hospitals NHS Trust,31/10/2021,Mobile Phones,SURGICAL CARE SECS,VODAFONE LTD,39916719,6.00
Department of Health,St. Helens&Knowsley Hospitals NHS Trust,31/10/2021,Mobile Phones,SURGICAL CARE SECS,VODAFONE LTD,39916719,30.00
Department of Health,St. Helens&Knowsley Hospitals NHS Trust,31/10/2021,Mobile Phones,THEATRES ANAESTHETICS WH,VODAFONE LTD,39916719,1.50
Department of Health,St. Helens&Knowsley Hospitals NHS Trust,31/10/2021,Mobile Phones,THEATRES ANAESTHETICS WH,VODAFONE LTD,39916719,7.50
Department of Health,St. Helens&Knowsley Hospitals NHS Trust,31/10/2021,Med & Surg Equip General,THEATRES BURNS + PLASTICS,AAH PHARMACEUTICALS LTD,39910512,287.10
Department of Health,St. Helens&Knowsley Hospitals NHS Trust,31/10/2021,Med & Surg Equip General,THEATRES BURNS + PLASTICS,AAH PHARMACEUTICALS LTD,40017648,130.50
Department of Health,St. Helens&Knowsley Hospitals NHS Trust,31/10/2021,Mobile Phones,THEATRES BURNS + PLASTICS,VODAFONE LTD,39916719,7.50
Department of Health,St. Helens&Knowsley Hospitals NHS Trust,31/10/2021,Mobile Phones,THEATRES BURNS + PLASTICS,VODAFONE LTD,39916719,37.50
Department of Health,St. Helens&Knowsley Hospitals NHS Trust,31/10/2021,Mobile Phones,THEATRES DIRECTORATE MGT,VODAFONE LTD,39916719,80.45
Department of Health,St. Helens&Knowsley Hospitals NHS Trust,31/10/2021,Mobile Phones,THEATRES DIRECTORATE MGT,VODAFONE LTD,39916719,402.26
Department of Health,St. Helens&Knowsley Hospitals NHS Trust,31/10/2021,Mobile Phones,THEATRES GEN SURGERY/UROL,VODAFONE LTD,39916719,3.00
Department of Health,St. Helens&Knowsley Hospitals NHS Trust,31/10/2021,Mobile Phones,THEATRES GEN SURGERY/UROL,VODAFONE LTD,39916719,15.00
Department of Health,St. Helens&Knowsley Hospitals NHS Trust,31/10/2021,Med & Surg Equip General,THEATRES MAIN ST HELEN'S,AAH PHARMACEUTICALS LTD,39910512,548.10
Department of Health,St. Helens&Knowsley Hospitals NHS Trust,31/10/2021,Med & Surg Equip General,THEATRES MAIN ST HELEN'S,AAH PHARMACEUTICALS LTD,40017648,208.80
Department of Health,St. Helens&Knowsley Hospitals NHS Trust,31/10/2021,Mobile Phones,THEATRES MAIN ST HELEN'S,VODAFONE LTD,39916719,9.00
Department of Health,St. Helens&Knowsley Hospitals NHS Trust,31/10/2021,Mobile Phones,THEATRES MAIN ST HELEN'S,VODAFONE LTD,39916719,45.00
Department of Health,St. Helens&Knowsley Hospitals NHS Trust,31/10/2021,Mobile Phones,THEATRES MATERNITY WH,VODAFONE LTD,39916719,3.00
Department of Health,St. Helens&Knowsley Hospitals NHS Trust,31/10/2021,Mobile Phones,THEATRES MATERNITY WH,VODAFONE LTD,39916719,15.00
Department of Health,St. Helens&Knowsley Hospitals NHS Trust,31/10/2021,Mobile Phones,THEATRES MEDICAL STAFF,VODAFONE LTD,39916719,6.00
Department of Health,St. Helens&Knowsley Hospitals NHS Trust,31/10/2021,Mobile Phones,THEATRES MEDICAL STAFF,VODAFONE LTD,39916719,30.00
Department of Health,St. Helens&Knowsley Hospitals NHS Trust,31/10/2021,Mobile Phones,THEATRES TRAU ORTHOPAEDIC,VODAFONE LTD,39916719,1.50
Department of Health,St. Helens&Knowsley Hospitals NHS Trust,31/10/2021,Mobile Phones,THEATRES TRAU ORTHOPAEDIC,VODAFONE LTD,39916719,7.50
Department of Health,St. Helens&Knowsley Hospitals NHS Trust,31/10/2021,Mobile Phones,THERAPY - MEDICINES FOR OLDER PEOPLE,VODAFONE LTD,39916719,1.50
Department of Health,St. Helens&Knowsley Hospitals NHS Trust,31/10/2021,Mobile Phones,THERAPY - MEDICINES FOR OLDER PEOPLE,VODAFONE LTD,39916719,7.50
Department of Health,St. Helens&Knowsley Hospitals NHS Trust,31/10/2021,Mobile Phones,THERAPY - SEDDON REHAB UNIT,VODAFONE LTD,39916719,7.49
Department of Health,St. Helens&Knowsley Hospitals NHS Trust,31/10/2021,Mobile Phones,THERAPY - SEDDON REHAB UNIT,VODAFONE LTD,39916719,37.47
Department of Health,St. Helens&Knowsley Hospitals NHS Trust,31/10/2021,Mobile Phones,THERAPY MANAGEMENT & ADMIN.,VODAFONE LTD,39916719,112.73
Department of Health,St. Helens&Knowsley Hospitals NHS Trust,31/10/2021,Mobile Phones,THERAPY MANAGEMENT & ADMIN.,VODAFONE LTD,39916719,563.65
Department of Health,St. Helens&Knowsley Hospitals NHS Trust,31/10/2021,Mobile Phones,TISSUE VIABILITY,VODAFONE LTD,39916719,9.00
Department of Health,St. Helens&Knowsley Hospitals NHS Trust,31/10/2021,Mobile Phones,TISSUE VIABILITY,VODAFONE LTD,39916719,45.00
Department of Health,St. Helens&Knowsley Hospitals NHS Trust,31/10/2021,Mobile Phones,TRANSFER LOUNGE,VODAFONE LTD,39916719,1.50
Department of Health,St. Helens&Knowsley Hospitals NHS Trust,31/10/2021,Mobile Phones,TRANSFER LOUNGE,VODAFONE LTD,39916719,7.50
Department of Health,St. Helens&Knowsley Hospitals NHS Trust,31/10/2021,Computer Maintenance,TRUST IT SYSTEMS,SYSTEM C HEALTHCARE LTD,39814617,"304,120.51"
Department of Health,St. Helens&Knowsley Hospitals NHS Trust,31/10/2021,Computer Maintenance,TRUST IT SYSTEMS,SYSTEM C HEALTHCARE LTD,39814617,"60,824.10"
Department of Health,St. Helens&Knowsley Hospitals NHS Trust,31/10/2021,Computer Hardware Purch,TRUST RECHARGES,VODAFONE LTD,39916719,-21.59
Department of Health,St. Helens&Knowsley Hospitals NHS Trust,31/10/2021,Computer Hardware Purch,TRUST RECHARGES,VODAFONE LTD,39916719,-107.95
Department of Health,St. Helens&Knowsley Hospitals NHS Trust,31/10/2021,Mobile Phones,UROLOGY MEDICAL STAFF,VODAFONE LTD,39916719,18.00
Department of Health,St. Helens&Knowsley Hospitals NHS Trust,31/10/2021,Mobile Phones,UROLOGY MEDICAL STAFF,VODAFONE LTD,39916719,90.00
Department of Health,St. Helens&Knowsley Hospitals NHS Trust,31/10/2021,Mobile Phones,UROLOGY SUITE,VODAFONE LTD,39916719,13.50
Department of Health,St. Helens&Knowsley Hospitals NHS Trust,31/10/2021,Mobile Phones,UROLOGY SUITE,VODAFONE LTD,39916719,67.50
Department of Health,St. Helens&Knowsley Hospitals NHS Trust,31/10/2021,Various Items,Various Departments,SUPPLY CHAIN COORDINATION LIMITED,39741209,"434,079.74"
Department of Health,St. Helens&Knowsley Hospitals NHS Trust,31/10/2021,Various Items,Various Departments,SUPPLY CHAIN COORDINATION LIMITED,39786743,"168,271.54"
Department of Health,St. Helens&Knowsley Hospitals NHS Trust,31/10/2021,Various Items,Various Departments,SUPPLY CHAIN COORDINATION LIMITED,39869601,"159,267.91"
Department of Health,St. Helens&Knowsley Hospitals NHS Trust,31/10/2021,Various Items,Various Departments,SUPPLY CHAIN COORDINATION LIMITED,39958829,"153,794.62"
Department of Health,St. Helens&Knowsley Hospitals NHS Trust,31/10/2021,Various Items,Various Departments,SUPPLY CHAIN COORDINATION LIMITED,40041071,"207,970.15"
Department of Health,St. Helens&Knowsley Hospitals NHS Trust,31/10/2021,Mobile Phones,VOLUNTEERS,VODAFONE LTD,39916719,12.00
Department of Health,St. Helens&Knowsley Hospitals NHS Trust,31/10/2021,Mobile Phones,VOLUNTEERS,VODAFONE LTD,39916719,60.00
Department of Health,St. Helens&Knowsley Hospitals NHS Trust,31/10/2021,Mobile Phones,WARD 1A WINTER,VODAFONE LTD,39916719,11.31
Department of Health,St. Helens&Knowsley Hospitals NHS Trust,31/10/2021,Mobile Phones,WARD 1A WINTER,VODAFONE LTD,39916719,56.53
Department of Health,St. Helens&Knowsley Hospitals NHS Trust,31/10/2021,Mobile Phones,WARD 1B ACUTE MEDICAL UNIT,VODAFONE LTD,39916719,4.53
Department of Health,St. Helens&Knowsley Hospitals NHS Trust,31/10/2021,Mobile Phones,WARD 1B ACUTE MEDICAL UNIT,VODAFONE LTD,39916719,22.66
Department of Health,St. Helens&Knowsley Hospitals NHS Trust,31/10/2021,Mobile Phones,WARD 1C ACUTE MEDICAL UNIT,VODAFONE LTD,39916719,11.13
Department of Health,St. Helens&Knowsley Hospitals NHS Trust,31/10/2021,Mobile Phones,WARD 1C ACUTE MEDICAL UNIT,VODAFONE LTD,39916719,55.66
Department of Health,St. Helens&Knowsley Hospitals NHS Trust,31/10/2021,Mobile Phones,WARD 1E CORONARY CARE UNIT,VODAFONE LTD,39916719,6.47
Department of Health,St. Helens&Knowsley Hospitals NHS Trust,31/10/2021,Mobile Phones,WARD 1E CORONARY CARE UNIT,VODAFONE LTD,39916719,32.35
Department of Health,St. Helens&Knowsley Hospitals NHS Trust,31/10/2021,Mobile Phones,WARD 2B RESPIRATORY,VODAFONE LTD,39916719,6.01
Department of Health,St. Helens&Knowsley Hospitals NHS Trust,31/10/2021,Mobile Phones,WARD 2B RESPIRATORY,VODAFONE LTD,39916719,30.06
Department of Health,St. Helens&Knowsley Hospitals NHS Trust,31/10/2021,Mobile Phones,WARD 2C RESPIRATORY,VODAFONE LTD,39916719,12.04
Department of Health,St. Helens&Knowsley Hospitals NHS Trust,31/10/2021,Mobile Phones,WARD 2C RESPIRATORY,VODAFONE LTD,39916719,60.20
Department of Health,St. Helens&Knowsley Hospitals NHS Trust,31/10/2021,Mobile Phones,WARD 2D GENERAL MEDICINE,VODAFONE LTD,39916719,6.00
Department of Health,St. Helens&Knowsley Hospitals NHS Trust,31/10/2021,Mobile Phones,WARD 2D GENERAL MEDICINE,VODAFONE LTD,39916719,30.00
Department of Health,St. Helens&Knowsley Hospitals NHS Trust,31/10/2021,Mobile Phones,WARD 3A PLASTICS,VODAFONE LTD,39916719,19.74
Department of Health,St. Helens&Knowsley Hospitals NHS Trust,31/10/2021,Mobile Phones,WARD 3A PLASTICS,VODAFONE LTD,39916719,98.71
Department of Health,St. Helens&Knowsley Hospitals NHS Trust,31/10/2021,Mobile Phones,WARD 3ALPHA ORTHOPAEDICS,VODAFONE LTD,39916719,6.00
Department of Health,St. Helens&Knowsley Hospitals NHS Trust,31/10/2021,Mobile Phones,WARD 3ALPHA ORTHOPAEDICS,VODAFONE LTD,39916719,30.00
Department of Health,St. Helens&Knowsley Hospitals NHS Trust,31/10/2021,Mobile Phones,WARD 3B ORTHOPAEDICS,VODAFONE LTD,39916719,6.00
Department of Health,St. Helens&Knowsley Hospitals NHS Trust,31/10/2021,Mobile Phones,WARD 3B ORTHOPAEDICS,VODAFONE LTD,39916719,30.00
Department of Health,St. Helens&Knowsley Hospitals NHS Trust,31/10/2021,Mobile Phones,WARD 3C GENERAL MEDICINE,VODAFONE LTD,39916719,-0.80
Department of Health,St. Helens&Knowsley Hospitals NHS Trust,31/10/2021,Mobile Phones,WARD 3C GENERAL MEDICINE,VODAFONE LTD,39916719,-4.00
Department of Health,St. Helens&Knowsley Hospitals NHS Trust,31/10/2021,Mobile Phones,WARD 3D GASTROENTEROLOGY,VODAFONE LTD,39916719,12.00
Department of Health,St. Helens&Knowsley Hospitals NHS Trust,31/10/2021,Mobile Phones,WARD 3D GASTROENTEROLOGY,VODAFONE LTD,39916719,60.00
Department of Health,St. Helens&Knowsley Hospitals NHS Trust,31/10/2021,Mobile Phones,WARD 3E GYNAECOLOGY,VODAFONE LTD,39916719,18.00
Department of Health,St. Helens&Knowsley Hospitals NHS Trust,31/10/2021,Mobile Phones,WARD 3E GYNAECOLOGY,VODAFONE LTD,39916719,90.00
Department of Health,St. Helens&Knowsley Hospitals NHS Trust,31/10/2021,Mobile Phones,WARD 3F PAEDIATRICS,VODAFONE LTD,39916719,15.24
Department of Health,St. Helens&Knowsley Hospitals NHS Trust,31/10/2021,Mobile Phones,WARD 3F PAEDIATRICS,VODAFONE LTD,39916719,76.18
Department of Health,St. Helens&Knowsley Hospitals NHS Trust,31/10/2021,Mobile Phones,WARD 4A GENERAL SURGERY,VODAFONE LTD,39916719,6.00
Department of Health,St. Helens&Knowsley Hospitals NHS Trust,31/10/2021,Mobile Phones,WARD 4A GENERAL SURGERY,VODAFONE LTD,39916719,30.00
Department of Health,St. Helens&Knowsley Hospitals NHS Trust,31/10/2021,Mobile Phones,WARD 4B GENERAL SURGERY,VODAFONE LTD,39916719,6.00
Department of Health,St. Helens&Knowsley Hospitals NHS Trust,31/10/2021,Mobile Phones,WARD 4B GENERAL SURGERY,VODAFONE LTD,39916719,30.00
Department of Health,St. Helens&Knowsley Hospitals NHS Trust,31/10/2021,Mobile Phones,WARD 4C GENERAL SURGERY,VODAFONE LTD,39916719,6.00
Department of Health,St. Helens&Knowsley Hospitals NHS Trust,31/10/2021,Mobile Phones,WARD 4C GENERAL SURGERY,VODAFONE LTD,39916719,30.00
Department of Health,St. Helens&Knowsley Hospitals NHS Trust,31/10/2021,Mobile Phones,WARD 4D BURNS,VODAFONE LTD,39916719,30.17
Department of Health,St. Helens&Knowsley Hospitals NHS Trust,31/10/2021,Mobile Phones,WARD 4D BURNS,VODAFONE LTD,39916719,150.83
Department of Health,St. Helens&Knowsley Hospitals NHS Trust,31/10/2021,Mobile Phones,WARD 5A CARE OF THE ELDERLY,VODAFONE LTD,39916719,6.00
Department of Health,St. Helens&Knowsley Hospitals NHS Trust,31/10/2021,Mobile Phones,WARD 5A CARE OF THE ELDERLY,VODAFONE LTD,39916719,30.00
Department of Health,St. Helens&Knowsley Hospitals NHS Trust,31/10/2021,Mobile Phones,WARD 5B CARE OF THE ELDERLY,VODAFONE LTD,39916719,-2.77
Department of Health,St. Helens&Knowsley Hospitals NHS Trust,31/10/2021,Mobile Phones,WARD 5B CARE OF THE ELDERLY,VODAFONE LTD,39916719,-13.87
Department of Health,St. Helens&Knowsley Hospitals NHS Trust,31/10/2021,Mobile Phones,WARD 5C ACUTE STROKE UNIT (HASU),VODAFONE LTD,39916719,32.44
Department of Health,St. Helens&Knowsley Hospitals NHS Trust,31/10/2021,Mobile Phones,WARD 5C ACUTE STROKE UNIT (HASU),VODAFONE LTD,39916719,162.18
Department of Health,St. Helens&Knowsley Hospitals NHS Trust,31/10/2021,Mobile Phones,WARD 5D ASU,VODAFONE LTD,39916719,6.00
Department of Health,St. Helens&Knowsley Hospitals NHS Trust,31/10/2021,Mobile Phones,WARD 5D ASU,VODAFONE LTD,39916719,30.00
Department of Health,St. Helens&Knowsley Hospitals NHS Trust,31/10/2021,Mobile Phones,WHIS THEATRES ANCIL & EMERG SUP STAFF,VODAFONE LTD,39916719,18.80
Department of Health,St. Helens&Knowsley Hospitals NHS Trust,31/10/2021,Mobile Phones,WHIS THEATRES ANCIL & EMERG SUP STAFF,VODAFONE LTD,39916719,94.00
Department of Health,St. Helens&Knowsley Hospitals NHS Trust,31/10/2021,Mobile Phones,WHIS THEATRES EMERG WKDAY NGTS WKEND,VODAFONE LTD,39916719,6.00
Department of Health,St. Helens&Knowsley Hospitals NHS Trust,31/10/2021,Mobile Phones,WHIS THEATRES EMERG WKDAY NGTS WKEND,VODAFONE LTD,39916719,30.00
Department of Health,St. Helens&Knowsley Hospitals NHS Trust,31/10/2021,Mobile Phones,WHISTON EQUIPMENT POOL,VODAFONE LTD,39916719,12.00
Department of Health,St. Helens&Knowsley Hospitals NHS Trust,31/10/2021,Mobile Phones,WHISTON EQUIPMENT POOL,VODAFONE LTD,39916719,60.00
Department of Health,St. Helens&Knowsley Hospitals NHS Trust,31/10/2021,Mobile Phones,WOMENS OPD,VODAFONE LTD,39916719,7.50
Department of Health,St. Helens&Knowsley Hospitals NHS Trust,31/10/2021,Mobile Phones,WOMENS OPD,VODAFONE LTD,39916719,37.50
Department of Health,St. Helens&Knowsley Hospitals NHS Trust,31/10/2021,Mobile Phones,WORKFORCE INTELLIGENCE,VODAFONE LTD,39916719,18.00
Department of Health,St. Helens&Knowsley Hospitals NHS Trust,31/10/2021,Mobile Phones,WORKFORCE INTELLIGENCE,VODAFONE LTD,39916719,90.00
